bitfinex/quotes_ETHUSD_20220220
["timestamp","ask_amount","ask_price","bid_price","bid_amount"]
[1645372209130,0.0802572,2648.4,2648.3,1.55803828]
[1645372209330,0.0802572,2648.4,2648.3,3.11494784]
[1645372209533,0.00864366,2648.9,2648.3,3.11494784]
[1645372209738,0.00864366,2648.9,2648.3,1.55803828]
[1645372209935,1.0,2648.4,2648.3,1.55803828]
[1645372212282,0.95,2648.4,2648.3,1.55803828]
[1645372212686,0.56274468,2648.9,2648.3,1.55803828]
[1645372212886,1.0,2648.4,2648.3,1.55803828]
[1645372216825,1.94729325,2648.4,2648.3,1.55803828]
[1645372221076,1.0,2648.4,2648.3,1.55803828]
[1645372221678,1.0,2648.4,2648.3,6.55803828]
[1645372221879,1.0,2648.6,2648.3,6.55803828]
[1645372222077,1.0,2648.6,2648.3,2.48329592]
[1645372222323,1.0,2648.6,2648.5,5.0]
[1645372225025,1.0,2648.6,2648.3,2.48329592]
[1645372225628,1.0,2648.6,2648.5,5.0]
[1645372226376,1.0,2648.7,2648.5,5.0]
[1645372226775,1.0,2648.8,2648.5,5.0]
[1645372226974,1.0,2648.8,2648.4,3.5]
[1645372227574,1.0,2648.8,2648.6,5.0]
[1645372228177,1.0,2648.8,2648.4,1.16063443]
[1645372228375,1.0,2648.8,2648.6,5.0]
[1645372229276,1.0,2648.8,2648.4,1.16063443]
[1645372229476,1.0,2648.8,2648.6,5.0]
[1645372230918,1.0,2648.8,2648.4,1.16063443]
[1645372231121,1.0,2648.8,2648.6,5.0]
[1645372233124,0.85,2648.8,2648.6,5.0]
[1645372233574,0.00217455,2649.0,2648.6,5.0]
[1645372233775,1.0,2648.8,2648.6,5.0]
[1645372235178,1.0270692,2648.8,2648.6,5.0]
[1645372235376,1.0270692,2648.8,2648.3,1.55803828]
[1645372235377,1.0365668,2648.8,2648.3,1.55803828]
[1645372235581,1.0365668,2648.8,2648.4,1.58606636]
[1645372235582,1.0,2648.7,2648.4,1.58606636]
[1645372235785,1.0,2648.4,2648.3,1.55803828]
[1645372237722,1.0365668,2648.4,2648.3,1.55803828]
[1645372239930,0.96899157,2648.9,2648.6,0.85620848]
[1645372239931,0.00869788,2648.9,2648.6,0.85620848]
[1645372240129,0.08024335,2648.8,2648.6,0.85620848]
[1645372240327,0.71971816,2648.8,2648.6,0.85620848]
[1645372240528,1.0,2648.7,2648.4,0.67530862]
[1645372240728,0.08024335,2648.6,2648.4,0.67530862]
[1645372240987,1.0,2648.5,2648.4,0.67530862]
[1645372241172,1.08024335,2648.5,2648.4,2.24287538]
[1645372241874,1.08024335,2648.5,2648.4,3.39802674]
[1645372245831,1.08024335,2648.5,2648.4,8.39802674]
[1645372250181,1.08024233,2648.5,2648.4,8.39703803]
[1645372251986,0.08024233,2648.5,2648.4,11.89703803]
[1645372252430,1.0,2648.8,2648.4,8.39703803]
[1645372252431,0.08024233,2648.7,2648.4,8.39703803]
[1645372252627,0.08024233,2648.6,2648.5,1.56657805]
[1645372253027,0.08024233,2648.7,2648.5,6.56657805]
[1645372253229,0.08024233,2648.7,2648.6,1.56657805]
[1645372253629,0.08024233,2648.8,2648.6,1.56657805]
[1645372253831,0.08024233,2648.7,2648.6,1.56657805]
[1645372254027,0.08024233,2648.7,2648.6,6.56657805]
[1645372254234,1.0,2648.9,2648.6,6.56657805]
[1645372254235,0.08024233,2648.8,2648.6,10.06657805]
[1645372254433,1.00217452,2649.0,2648.7,1.56657805]
[1645372254729,0.08023229,2648.9,2648.7,6.56657805]
[1645372254928,1.0,2649.2,2648.8,1.56657805]
[1645372255131,0.00217464,2649.0,2648.9,0.92883498]
[1645372255331,1.00217464,2649.0,2648.9,1.56657805]
[1645372255531,1.08240678,2649.0,2648.9,1.56657805]
[1645372255731,1.08240678,2649.0,2648.7,5.0]
[1645372255979,0.08023214,2648.9,2648.7,5.0]
[1645372256969,1.0,2648.8,2648.7,5.0]
[1645372257172,1.08023214,2648.8,2648.7,6.56579246]
[1645372258373,1.08023214,2648.8,2648.7,5.0]
[1645372259830,1.08023214,2648.8,2648.7,4.50000001]
[1645372266580,1.0,2648.8,2648.7,4.50000001]
[1645372266787,1.08024293,2648.8,2648.7,4.50000001]
[1645372267432,1.08024293,2648.8,2648.7,6.07789872]
[1645372268427,1.08024293,2648.8,2648.7,4.50000001]
[1645372269029,1.08024293,2648.8,2648.7,6.07764933]
[1645372269432,1.08394995,2648.8,2648.7,6.07764933]
[1645372270982,1.08394995,2648.8,2648.7,6.07120155]
[1645372271376,1.00370702,2648.8,2648.7,4.49355223]
[1645372271577,1.08394373,2648.8,2648.7,6.07086519]
[1645372273781,0.08394373,2648.8,2648.7,9.57086519]
[1645372276028,0.08394373,2648.8,2648.7,6.07086519]
[1645372276429,20.59070377,2650.0,2648.8,8.5]
[1645372276430,0.01444388,2649.3,2648.8,8.5]
[1645372276731,2.04480718,2649.9,2648.9,0.3]
[1645372276732,0.00519926,2649.0,2648.9,0.3]
[1645372276929,0.00231137,2649.0,2648.9,0.3]
[1645372277133,0.00231137,2649.0,2648.9,5.79355223]
[1645372277329,0.00231137,2649.0,2648.9,6.09355223]
[1645372277531,11.52,2650.7,2648.9,6.09355223]
[1645372277532,0.96029369,2650.2,2649.1,11.66]
[1645372277734,0.96029369,2650.3,2650.1,4.49355223]
[1645372277933,0.96029369,2651.0,2650.1,4.49355223]
[1645372278134,0.96029369,2651.1,2650.6,4.49355223]
[1645372278333,0.96029369,2650.9,2650.4,4.49355223]
[1645372278605,2.44055118,2651.1,2650.0,1.2342]
[1645372278606,0.8605684,2650.5,2650.0,1.2342]
[1645372278804,1.96029369,2650.8,2649.9,1.08819997]
[1645372279002,1.0,2650.7,2649.9,1.08819997]
[1645372279404,1.0,2650.7,2650.6,4.49355223]
[1645372279606,1.0,2650.9,2650.6,4.49355223]
[1645372279812,1.1423752,2651.0,2650.2,1.0]
[1645372280007,1.1423752,2651.0,2650.4,4.49355223]
[1645372280413,0.96029369,2651.4,2651.0,11.52]
[1645372280414,1.0,2651.4,2651.0,11.52]
[1645372280714,0.04035807,2651.5,2651.3,4.49355223]
[1645372281406,1.04035807,2651.5,2651.3,4.49355223]
[1645372281606,0.04035807,2651.5,2651.3,4.49355223]
[1645372281807,0.04288546,2651.5,2651.3,4.49355223]
[1645372282635,0.04035807,2651.5,2651.3,4.49355223]
[1645372282835,0.04288546,2651.5,2651.3,4.49355223]
[1645372283841,0.04035807,2651.5,2651.3,4.49355223]
[1645372284037,0.04288546,2651.5,2651.3,4.49355223]
[1645372285046,0.04035807,2651.5,2651.3,4.49355223]
[1645372285440,0.04288546,2651.5,2651.3,4.49355223]
[1645372286176,0.04035807,2651.5,2651.3,4.49355223]
[1645372286578,0.04288546,2651.5,2651.3,4.49355223]
[1645372287377,0.04035807,2651.5,2651.3,4.49355223]
[1645372287582,0.04288546,2651.5,2651.3,4.49355223]
[1645372288678,0.04035807,2651.5,2651.3,4.49355223]
[1645372288878,0.04288546,2651.5,2651.3,4.49355223]
[1645372289482,0.00267052,2651.4,2651.3,4.49355223]
[1645372292431,1.00267052,2651.4,2651.3,4.49355223]
[1645372292631,0.00267052,2651.4,2651.3,4.49355223]
[1645372293034,1.00267052,2651.4,2651.3,4.49355223]
[1645372293777,1.00267052,2651.4,2651.3,4.39355223]
[1645372302378,0.00267052,2651.4,2651.3,4.39355223]
[1645372302779,1.00267052,2651.4,2651.3,4.39355223]
[1645372302979,1.00267052,2651.4,2650.8,2.9543]
[1645372303188,0.00514642,2651.3,2650.7,4.39355223]
[1645372303481,1.00514642,2651.3,2650.7,4.39355223]
[1645372303979,1.00514642,2651.3,2650.9,4.39355223]
[1645372304180,1.0,2651.3,2650.9,4.39355223]
[1645372304381,1.0,2651.3,2651.1,5.24961647]
[1645372304581,1.0,2651.3,2651.1,0.85606424]
[1645372304582,0.00514642,2651.2,2651.1,0.85606424]
[1645372304832,1.0,2651.3,2651.1,0.85606424]
[1645372305031,0.00267052,2651.4,2651.2,4.39355223]
[1645372305228,1.0,2651.3,2651.2,4.39355223]
[1645372305431,1.0,2651.3,2650.8,4.39355223]
[1645372305628,0.00514642,2651.2,2651.1,4.39355223]
[1645372305832,1.0051817,2651.4,2651.1,4.39355223]
[1645372306028,1.0051817,2651.4,2650.6,4.9783]
[1645372306029,1.00514642,2651.3,2650.6,4.9783]
[1645372306231,1.00514642,2651.3,2651.2,4.39355223]
[1645372306428,1.0051817,2651.4,2651.2,4.39355223]
[1645372306729,1.0051817,2651.4,2651.3,1.00235859]
[1645372306730,1.00267052,2651.4,2651.3,1.00235859]
[1645372306927,1.00518171,2651.4,2651.2,4.39355223]
[1645372307130,1.00518171,2651.4,2650.6,2.7783]
[1645372307331,1.00514642,2651.3,2650.8,4.39355223]
[1645372307530,0.9436718,2652.7,2650.8,4.39355223]
[1645372307731,4.24299999,2652.4,2651.2,4.39355223]
[1645372307932,0.499,2651.3,2650.8,3.5]
[1645372308130,1.1869,2652.3,2651.2,5.26362352]
[1645372308583,1.0,2651.4,2651.2,4.39355223]
[1645372308782,1.0,2651.4,2651.3,0.95951045]
[1645372309381,0.00262304,2651.2,2650.8,2.3204]
[1645372309583,0.00262304,2651.2,2651.1,4.39355223]
[1645372309786,0.00262304,2651.2,2650.8,4.39355223]
[1645372309979,0.00262304,2651.2,2650.6,1.3668]
[1645372310184,0.00262304,2651.2,2651.1,4.39355223]
[1645372310582,0.00262304,2651.2,2651.1,5.30983671]
[1645372312431,0.00249857,2651.3,2651.2,0.00268816]
[1645372316001,1.00249857,2651.3,2651.2,0.00268816]
[1645372319189,1.00482299,2651.3,2651.2,0.00268816]
[1645372320636,1.00482299,2651.3,2650.9,1.07704861]
[1645372321035,1.0,2651.2,2651.0,4.39355223]
[1645372321240,1.0,2651.1,2650.9,1.07704861]
[1645372321440,1.0,2651.1,2651.0,1.59627]
[1645372321738,1.00482299,2651.3,2651.0,1.59627]
[1645372322135,1.00482299,2651.3,2650.9,1.07704861]
[1645372322336,1.0,2651.1,2650.9,1.07704861]
[1645372322538,1.0,2651.1,2651.0,4.39355223]
[1645372323585,1.0,2651.1,2650.9,1.07704861]
[1645372323790,1.0,2651.1,2650.9,4.39355223]
[1645372323992,1.0,2651.0,2650.7,0.1885]
[1645372324187,1.0,2651.0,2650.5,0.1885]
[1645372324386,1.0,2650.8,2650.7,4.39355223]
[1645372324586,0.97020818,2651.3,2650.7,4.39355223]
[1645372324985,1.0,2650.8,2650.6,0.00251162]
[1645372325202,1.0,2650.8,2649.8,5.09740932]
[1645372325203,18.0,2650.7,2649.8,5.09740932]
[1645372325490,18.0,2650.7,2649.4,0.70385709]
[1645372325491,1.0,2650.5,2649.4,0.70385709]
[1645372325687,1.0,2650.5,2649.3,0.70385709]
[1645372325688,1.0,2649.9,2649.3,0.70385709]
[1645372325891,1.0,2649.5,2649.1,0.70385709]
[1645372326085,1.0,2649.5,2649.3,1.18010721]
[1645372326292,0.2536,2650.1,2649.3,1.18010721]
[1645372326490,1.0,2649.4,2649.3,1.18010721]
[1645372326688,1.0,2649.4,2649.3,5.57365944]
[1645372327087,1.0,2649.5,2649.3,5.57365944]
[1645372329139,1.0,2649.5,2649.3,7.37365944]
[1645372329740,1.0,2649.5,2649.3,7.37617149]
[1645372330743,1.0,2649.5,2649.3,7.37365944]
[1645372331003,0.60462245,2650.0,2649.3,19.19617149]
[1645372331191,0.55462245,2650.0,2649.9,4.39355223]
[1645372331396,0.00491321,2650.4,2649.9,4.39355223]
[1645372331397,0.55462245,2650.1,2649.9,4.39355223]
[1645372331593,0.00491321,2650.4,2649.9,4.39355223]
[1645372331990,0.99962245,2650.2,2650.0,1.05146589]
[1645372332193,0.99962245,2650.1,2649.9,4.39606408]
[1645372332791,0.99962245,2650.1,2649.9,0.00251185]
[1645372333194,0.99962245,2650.1,2649.7,4.39355223]
[1645372333195,0.99962245,2650.1,2649.8,1.15548405]
[1645372333391,0.00491321,2650.4,2649.8,1.15548405]
[1645372333392,0.99962245,2650.0,2649.9,0.00251185]
[1645372333592,0.00491321,2650.4,2649.9,0.00251185]
[1645372333892,0.99962245,2650.0,2649.9,0.00251185]
[1645372334392,1.90982303,2650.9,2649.9,4.39355223]
[1645372334393,0.00509087,2650.9,2649.9,4.39355223]
[1645372334593,0.00509087,2650.9,2649.8,3.50251187]
[1645372334837,0.99962245,2650.8,2650.6,4.39355223]
[1645372335031,0.99962245,2650.9,2649.8,12.94901187]
[1645372335232,1.00471332,2650.8,2649.8,10.02911187]
[1645372335434,0.99962245,2650.8,2650.3,1.12433461]
[1645372335631,1.00471332,2650.8,2650.3,1.12433461]
[1645372335931,0.99962245,2650.8,2650.3,1.12433461]
[1645372336638,0.99962245,2650.9,2650.3,1.12433461]
[1645372336832,0.00509087,2650.8,2650.3,1.12433461]
[1645372337034,0.00509087,2650.8,2650.4,0.00251168]
[1645372337234,0.99962245,2650.9,2650.7,4.39355223]
[1645372337435,0.99962245,2650.9,2650.4,0.00251168]
[1645372337436,0.00509087,2650.8,2650.4,0.00251168]
[1645372337637,0.99962245,2650.9,2650.4,0.00251168]
[1645372337835,0.99962245,2650.9,2650.3,5.51788684]
[1645372337836,0.00509087,2650.8,2650.3,5.51788684]
[1645372338236,0.00509087,2650.8,2650.7,1.1039712]
[1645372338484,0.04999999,2651.2,2650.7,5.49752343]
[1645372338485,0.99962245,2651.0,2650.7,5.49752343]
[1645372338684,0.04999999,2651.2,2650.7,1.1039712]
[1645372338883,0.05509086,2651.2,2650.7,1.1039712]
[1645372339085,0.05509086,2651.2,2651.0,4.39355223]
[1645372339287,0.99962245,2651.3,2651.0,4.39355223]
[1645372339484,0.99962245,2651.3,2650.7,5.49752343]
[1645372339683,0.00509087,2651.2,2650.7,5.49752343]
[1645372339883,0.00509087,2651.2,2650.7,1.1039712]
[1645372340095,0.00509087,2651.2,2651.0,4.39355223]
[1645372340288,0.99962245,2651.3,2651.0,4.39355223]
[1645372340484,0.99962245,2651.3,2650.7,5.49752343]
[1645372340686,0.00509087,2651.2,2650.7,5.49752343]
[1645372342244,0.00509087,2651.2,2650.7,1.1039712]
[1645372342442,0.00509087,2651.2,2651.1,4.39355223]
[1645372342643,0.99962245,2651.3,2650.4,3.6885]
[1645372342845,0.00509087,2651.2,2650.3,1.1307]
[1645372343043,0.00509087,2651.2,2650.9,4.39355223]
[1645372343244,0.99962245,2651.3,2650.9,4.39355223]
[1645372343445,0.99962245,2651.3,2650.5,0.00228298]
[1645372343644,0.00509087,2651.2,2650.6,1.15625539]
[1645372344249,0.00985088,2651.2,2650.6,1.15625539]
[1645372345247,0.00985088,2651.2,2650.9,4.39355223]
[1645372345449,0.00476001,2651.2,2650.9,4.39355223]
[1645372347689,0.00476001,2651.2,2650.6,1.15625539]
[1645372347690,0.00476001,2651.2,2651.1,4.39355223]
[1645372347985,0.00985088,2651.2,2651.1,4.39355223]
[1645372348184,0.00476001,2651.2,2651.1,4.39355223]
[1645372348586,0.00476001,2651.2,2651.1,5.42616292]
[1645372349386,0.00476001,2651.2,2651.1,6.42616292]
[1645372349595,0.00942257,2651.8,2651.3,0.00954795]
[1645372349596,0.00509087,2651.6,2651.3,0.00954795]
[1645372349843,1.00904502,2651.8,2651.5,4.39355223]
[1645372349844,0.99962245,2651.8,2651.5,4.39355223]
[1645372350040,0.00509087,2651.7,2651.4,4.39355223]
[1645372350241,0.99962245,2651.9,2651.4,4.39355223]
[1645372350439,0.99962245,2651.9,2651.3,0.00954795]
[1645372350440,0.00509087,2651.8,2651.3,0.00954795]
[1645372350638,0.99962245,2651.9,2651.3,0.00954795]
[1645372350839,0.00509087,2651.8,2651.3,0.00954795]
[1645372351040,1.00471332,2651.8,2651.3,0.00954795]
[1645372351240,0.99962245,2651.8,2651.3,0.00954795]
[1645372351444,0.99962245,2651.4,2651.3,0.00954795]
[1645372352040,0.99962245,2651.6,2651.3,0.00954795]
[1645372353689,0.99962245,2651.5,2651.3,0.00954795]
[1645372353889,0.99962245,2651.5,2651.3,4.40310018]
[1645372355489,0.99962245,2651.5,2651.3,4.3988119]
[1645372355688,0.99962245,2651.5,2651.4,1.17717]
[1645372355892,1.00389258,2651.7,2651.4,1.17717]
[1645372356289,1.00389258,2651.7,2651.6,4.39355223]
[1645372356889,0.00427013,2651.7,2651.6,4.39355223]
[1645372359438,0.00509087,2651.8,2651.6,4.39355223]
[1645372359639,0.99962245,2651.9,2651.6,4.39355223]
[1645372359839,0.99962245,2651.9,2651.8,4.39355223]
[1645372359840,0.00235687,2651.9,2651.8,4.39355223]
[1645372360838,0.99962245,2652.0,2651.8,4.39355223]
[1645372361088,1.00197938,2652.0,2651.8,5.43101418]
[1645372361491,1.00197938,2652.0,2651.8,5.42457031]
[1645372361889,0.99962245,2652.0,2651.8,5.42457031]
[1645372362295,0.00235692,2652.0,2651.8,5.72457031]
[1645372363189,0.00509087,2652.4,2652.2,0.96693614]
[1645372363392,0.99962245,2652.5,2652.2,0.96693614]
[1645372363691,0.07368707,2652.8,2652.4,4.38710836]
[1645372363895,0.07368707,2652.8,2652.7,4.38710836]
[1645372364093,0.0685962,2652.8,2652.7,4.38710836]
[1645372364493,0.0685962,2652.8,2652.7,5.36958094]
[1645372364734,0.5,2653.2,2652.7,5.36958094]
[1645372364735,0.33833547,2653.2,2652.7,5.36958094]
[1645372364935,0.33833547,2653.2,2652.7,0.98247258]
[1645372365139,0.33833547,2653.2,2653.0,4.38710836]
[1645372365536,1.05515225,2653.7,2653.0,4.38710836]
[1645372365537,0.99962245,2653.4,2653.0,4.38710836]
[1645372365735,0.99962245,2653.4,2653.0,4.33710836]
[1645372365935,0.80962245,2653.2,2653.0,4.33710836]
[1645372366135,0.80962245,2653.2,2653.0,4.28710836]
[1645372366335,0.3376,2653.6,2653.0,4.28710836]
[1645372366536,0.99962245,2653.3,2653.0,4.28710836]
[1645372366737,0.99962245,2653.3,2652.6,1.1983]
[1645372366934,0.99962245,2653.2,2653.1,4.28710836]
[1645372367134,0.99962245,2653.4,2653.1,4.28710836]
[1645372367334,0.99962245,2653.4,2653.1,5.17784601]
[1645372367634,0.96029369,2653.7,2653.1,4.28710836]
[1645372367635,1.95991614,2653.7,2653.1,4.28710836]
[1645372367840,0.99962245,2653.4,2653.1,4.28710836]
[1645372369185,0.96029369,2653.7,2653.1,4.28710836]
[1645372369186,0.99962245,2653.3,2653.1,4.28710836]
[1645372369387,1.00327731,2653.3,2653.1,2.16697576]
[1645372369582,0.99962245,2653.2,2653.1,2.16697576]
[1645372371483,0.99962245,2653.2,2653.0,2.16697576]
[1645372371883,0.00365486,2653.3,2653.0,2.16697576]
[1645372371884,0.99962245,2653.1,2653.0,2.16697576]
[1645372373948,0.99962245,2653.1,2652.6,1.1983]
[1645372374149,0.99962245,2653.1,2652.4,4.39837576]
[1645372374350,0.99962245,2653.0,2652.4,2.2314]
[1645372374648,0.99962245,2653.0,2652.2,7.5712]
[1645372374848,0.99962245,2653.0,2652.2,4.6635]
[1645372375048,0.99962245,2653.0,2652.3,0.91233539]
[1645372375548,0.00215528,2652.7,2652.3,0.91233539]
[1645372376381,0.99962245,2653.0,2652.3,0.91233539]
[1645372376581,0.00215531,2652.6,2652.3,0.91233539]
[1645372377382,0.00215531,2652.6,2652.5,2.16697576]
[1645372377581,0.99962245,2653.0,2652.5,2.16697576]
[1645372377783,0.00214525,2652.6,2652.3,0.91233539]
[1645372378184,0.00214525,2652.6,2652.5,2.16697576]
[1645372378785,0.99962245,2653.0,2652.5,2.16697576]
[1645372379084,0.00214523,2652.7,2652.3,4.41233539]
[1645372379286,0.00554138,2652.7,2652.6,2.16697576]
[1645372379936,0.00339615,2652.7,2652.6,2.16697576]
[1645372382438,0.00339615,2652.7,2652.6,2.11697576]
[1645372383785,0.96878948,2653.3,2652.9,1.18225248]
[1645372383985,0.96878948,2653.3,2652.5,1.2398]
[1645372384187,0.96878948,2653.3,2652.4,2.11697576]
[1645372384188,0.96878948,2653.0,2652.4,2.11697576]
[1645372384388,0.0066578,2652.7,2652.4,2.11697576]
[1645372384790,0.99978948,2652.5,2652.4,2.11697576]
[1645372385587,1.00644728,2652.7,2652.4,2.11697576]
[1645372385787,0.99978948,2652.6,2652.4,2.11697576]
[1645372386285,0.0066578,2652.7,2652.4,2.11697576]
[1645372386286,0.99978948,2652.5,2652.4,2.11697576]
[1645372386487,1.84996696,2652.5,2652.1,1.2246]
[1645372386689,1.84996696,2652.5,2651.9,2.11697576]
[1645372386889,0.99978948,2652.2,2651.9,2.11697576]
[1645372387085,0.99978948,2652.0,2651.9,2.11697576]
[1645372387340,0.85017748,2652.5,2651.9,2.11697576]
[1645372387341,0.84996696,2652.5,2651.9,2.11697576]
[1645372387542,0.3376,2652.1,2651.9,2.11697576]
[1645372387743,1.0,2652.0,2651.9,2.11697576]
[1645372388342,0.3376,2652.1,2651.9,2.11697576]
[1645372388343,1.3376,2652.1,2651.9,2.11697576]
[1645372388542,1.0,2652.5,2651.9,2.11697576]
[1645372388746,1.0,2652.5,2652.0,1.11681855]
[1645372388941,1.0,2652.4,2652.0,1.11681855]
[1645372389543,1.0,2652.4,2651.5,0.1885]
[1645372389949,1.0,2652.4,2652.2,2.11697576]
[1645372390845,0.00388814,2652.6,2652.2,2.11697576]
[1645372390846,1.0,2652.3,2652.2,2.11697576]
[1645372391100,1.0,2652.3,2652.2,2.119483]
[1645372391502,1.0,2652.3,2652.2,0.00250724]
[1645372391999,1.0,2652.3,2651.9,2.11697576]
[1645372392296,1.0,2652.3,2652.1,0.00250726]
[1645372392495,1.0,2652.4,2652.1,2.11948302]
[1645372393098,1.0,2652.4,2652.1,2.11697576]
[1645372393498,1.0,2652.4,2652.1,2.1194798]
[1645372393699,1.0,2652.5,2652.1,0.00250404]
[1645372393903,1.00388814,2652.6,2652.1,0.00250404]
[1645372394099,1.00388814,2652.6,2652.2,2.11697576]
[1645372394303,0.96029369,2653.2,2652.5,13.94954536]
[1645372394506,0.3376,2653.6,2653.1,2.11697576]
[1645372394735,0.00250296,2653.3,2653.1,2.11697576]
[1645372394935,0.00250296,2653.3,2652.7,11.52]
[1645372395337,0.00250296,2653.3,2652.6,8.01309041]
[1645372395338,1.00250296,2653.3,2652.9,2.11697576]
[1645372395635,1.0,2653.3,2653.2,2.11697576]
[1645372395836,1.0,2653.4,2652.7,1.0]
[1645372396035,1.0,2653.4,2653.0,2.11697576]
[1645372397037,0.00250225,2653.3,2653.0,2.11697576]
[1645372397437,0.00250225,2653.3,2653.0,3.14860585]
[1645372397638,0.00250225,2653.3,2653.1,2.11697576]
[1645372398036,1.0,2653.4,2653.0,1.03163009]
[1645372398497,0.00250225,2653.3,2653.0,1.03163009]
[1645372398889,0.00250225,2653.3,2653.2,2.11697576]
[1645372399291,1.0,2653.4,2653.0,1.03163009]
[1645372399489,1.00250223,2653.4,2653.0,1.03163009]
[1645372399688,0.00639808,2653.2,2653.0,1.03163009]
[1645372399891,0.00639808,2653.2,2653.1,2.11697576]
[1645372400292,0.95890031,2653.5,2653.1,2.11697576]
[1645372400487,0.95890031,2653.4,2653.0,2.11697576]
[1645372400690,0.00250221,2653.3,2653.0,2.11697576]
[1645372401087,0.00250221,2653.3,2653.1,12.67420704]
[1645372401291,0.00250221,2653.3,2653.2,2.11697576]
[1645372401492,0.00250221,2653.3,2653.0,2.11697576]
[1645372401694,0.00498692,2653.5,2653.0,2.11697576]
[1645372401891,0.00663563,2653.5,2653.0,2.11697576]
[1645372402741,0.00663563,2653.5,2652.9,1.13796226]
[1645372402942,0.00498692,2653.5,2653.3,2.11697576]
[1645372403140,0.00164871,2653.5,2653.3,2.11697576]
[1645372404142,0.99990031,2653.6,2653.3,2.11697576]
[1645372404346,0.90240249,2653.6,2653.3,2.11697576]
[1645372404742,0.25498692,2653.7,2653.3,2.11697576]
[1645372405044,0.25498692,2653.7,2653.6,2.11697576]
[1645372405242,0.25,2653.7,2653.6,2.11697576]
[1645372405642,1.24940249,2653.7,2653.6,2.11697576]
[1645372405844,1.24940249,2653.7,2652.9,2.94766226]
[1645372406089,0.00498692,2653.6,2652.9,2.94766226]
[1645372406289,0.9984192,2653.6,2653.3,2.11697576]
[1645372406493,0.9984192,2653.5,2653.3,2.11697576]
[1645372406894,0.20901956,2653.7,2653.3,2.11697576]
[1645372407093,0.9994192,2653.4,2653.3,2.11697576]
[1645372407293,0.9994192,2653.6,2653.3,2.11697576]
[1645372407495,0.9994192,2653.6,2652.9,2.34766226]
[1645372407693,0.9994192,2653.4,2653.2,2.11697576]
[1645372408295,0.20901956,2653.7,2653.2,2.41697576]
[1645372408296,0.9994192,2653.6,2653.2,2.41697576]
[1645372408892,0.9994192,2653.6,2653.2,2.11697576]
[1645372409093,1.00192129,2653.6,2653.2,2.11697576]
[1645372409498,1.00192129,2653.6,2653.1,0.00250255]
[1645372409743,0.00250209,2653.6,2653.5,2.11697576]
[1645372410144,0.21241309,2653.7,2653.5,2.11697576]
[1645372410343,0.00250206,2653.6,2653.5,2.11697576]
[1645372411344,0.21241309,2653.7,2653.5,2.11697576]
[1645372411544,0.21491522,2653.7,2653.5,2.11697576]
[1645372412647,0.21491521,2653.7,2653.5,2.11697576]
[1645372413687,0.21241309,2653.7,2653.5,2.11697576]
[1645372413888,0.21491521,2653.7,2653.5,2.11697576]
[1645372414286,0.00325967,2653.6,2653.5,2.11697576]
[1645372414589,0.00325967,2653.6,2653.5,2.06697576]
[1645372414795,0.00325967,2653.6,2653.3,2.06697576]
[1645372415187,1.00267887,2653.6,2653.3,2.06697576]
[1645372415386,0.9994192,2653.4,2653.3,2.06697576]
[1645372415686,1.259975,2653.4,2653.3,2.06697576]
[1645372416086,1.259975,2653.4,2653.1,0.00250264]
[1645372416087,3.5,2653.3,2652.4,3.0422]
[1645372416291,3.5,2653.3,2653.1,0.00250252]
[1645372416292,4.5,2653.2,2653.1,0.00250252]
[1645372416489,4.5,2653.2,2651.6,2.8128]
[1645372416490,17.5,2653.1,2651.8,0.1884]
[1645372416690,18.46029369,2653.1,2651.7,2.7666]
[1645372416888,0.9994192,2652.9,2651.7,2.7666]
[1645372417090,0.9994192,2652.1,2652.0,1.6026918]
[1645372417349,0.25,2652.6,2652.1,0.7101296]
[1645372417943,1.0,2652.2,2652.1,0.7101296]
[1645372418344,1.0,2652.3,2652.1,2.30616824]
[1645372418547,1.0,2652.3,2652.1,13.2301296]
[1645372418749,1.0,2652.5,2652.2,1.59608384]
[1645372418946,1.0,2652.5,2652.1,0.7101296]
[1645372419748,2.16408251,2652.5,2652.1,0.7101296]
[1645372420547,1.0,2652.5,2652.1,0.7101296]
[1645372420999,0.25,2652.6,2652.1,0.7101296]
[1645372421000,1.0,2652.3,2652.1,0.7101296]
[1645372421289,1.0,2652.3,2652.2,0.00250279]
[1645372421690,1.0,2652.5,2652.2,0.00250279]
[1645372422090,0.25,2652.6,2652.1,0.7101296]
[1645372422290,1.0,2652.5,2652.2,0.00250277]
[1645372423090,0.25,2652.6,2652.2,0.00250277]
[1645372423291,0.25,2652.6,2652.1,0.7101296]
[1645372423492,0.25,2652.6,2652.2,0.00250277]
[1645372423691,1.0,2652.5,2652.2,0.00250277]
[1645372424291,0.00307001,2652.4,2652.2,0.00250277]
[1645372424495,0.00307001,2652.4,2652.1,0.7101296]
[1645372424741,0.00307001,2652.4,2652.2,0.00250277]
[1645372425741,0.00307001,2652.4,2652.1,0.7101296]
[1645372425942,0.00307001,2652.4,2652.2,0.00250279]
[1645372426945,0.00307001,2652.4,2652.1,0.7101296]
[1645372427147,0.00307001,2652.4,2652.2,0.00250279]
[1645372428152,0.00307001,2652.4,2652.1,0.7101296]
[1645372428352,0.00307001,2652.4,2652.2,0.00250279]
[1645372428593,0.00307001,2652.4,2652.2,0.05250279]
[1645372429288,1.25306738,2652.6,2652.2,0.05]
[1645372429493,1.25306738,2652.6,2652.3,1.59477972]
[1645372429789,1.25306738,2652.6,2652.3,2.19477972]
[1645372429991,1.25306738,2652.6,2652.4,1.18108812]
[1645372430689,1.25306738,2652.6,2652.4,1.18359084]
[1645372431491,1.25306738,2652.6,2652.5,3.5]
[1645372431492,0.25306738,2652.6,2652.5,3.5]
[1645372431691,0.25306738,2652.6,2652.4,2.48108812]
[1645372431991,0.25306738,2652.6,2652.4,2.48359084]
[1645372432846,0.25306738,2652.6,2652.4,1.48108812]
[1645372433041,0.25306738,2652.6,2652.4,2.48359084]
[1645372433443,0.25306738,2652.6,2652.4,1.48359084]
[1645372433842,0.25306738,2652.6,2652.4,0.30250272]
[1645372434044,0.25306738,2652.6,2652.4,0.3]
[1645372434245,0.25306738,2652.6,2652.4,0.30250272]
[1645372434445,1.25306738,2652.6,2652.4,0.00250272]
[1645372434644,1.25306738,2652.6,2652.4,0.30250272]
[1645372434845,1.25306738,2652.6,2652.4,0.00250272]
[1645372435045,1.25306738,2652.6,2652.4,0.94224447]
[1645372435244,1.25306738,2652.6,2652.4,1.23974175]
[1645372435449,1.25306738,2652.6,2652.4,1.24224447]
[1645372435646,0.90807948,2652.6,2652.4,1.24224447]
[1645372435849,0.25493406,2653.2,2652.6,7.5]
[1645372435850,0.25,2653.0,2652.6,7.5]
[1645372436100,0.25,2653.0,2652.9,5.0]